[Event "Halifax Summer op"]
[Site "Halifax CAN"]
[Date "2019.06.30"]
[Round "5.3"]
[White "Cashin, Ken"]
[Black "Ferreira, Paulo"]
[Result "1/2-1/2"]
[ECO "B03"]
[WhiteElo "1765"]
[BlackElo "1818"]
[PlyCount "144"]
[EventDate "2019.05.28"]
[EventType "swiss"]
[EventRounds "5"]
[EventCountry "CAN"]
[TimeControl "2+30"]

1. e4 {[%emt 0:00:04]} Nf6 {[%emt 0:00:07]} 2. e5 {[%emt 0:00:05]} Nd5 {
[%emt 0:00:03]} 3. d4 {[%emt 0:00:39]} d6 {[%emt 0:00:05]} 4. c4 {
[%emt 0:00:08]} Nb6 {[%emt 0:00:07]} 5. exd6 {[%emt 0:00:20]} exd6 {
[%emt 0:00:12]} 6. Be3 {[%emt 0:00:55]} Be7 {[%emt 0:00:24]} 7. Nc3 {
[%emt 0:00:44]} Nc6 {[%emt 0:00:43]} 8. Rc1 {[%emt 0:00:40]} Bf5 {
[%emt 0:01:13]} 9. Be2 {[%emt 0:05:10]} O-O {[%emt 0:00:00]} 10. b3 {
[%emt 0:00:19]} Bf6 {[%emt 0:00:37]} 11. Nf3 {[%emt 0:00:27]} Re8 {
[%emt 0:00:23]} 12. O-O {[%emt 0:00:36]} Bg4 {[%emt 0:05:53]} 13. Qd2 {
[%emt 0:01:36]} Qd7 {[%emt 0:02:34]} 14. Rfd1 {[%emt 0:02:11]} Rad8 {
[%emt 0:00:00]} 15. h3 {[%emt 0:01:53]} Bh5 {[%emt 0:15:16]} 16. d5 {
[%emt 0:01:03]} Bxf3 {[%emt 0:00:17]} 17. Bxf3 {[%emt 0:00:43]} Ne5 {
[%emt 0:00:11]} 18. Be2 {[%emt 0:00:38]} Ng6 {[%emt 0:07:10]} 19. Nb5 {
[%emt 0:04:19]} a6 {[%emt 0:01:00]} 20. Nd4 {[%emt 0:00:39]} Bxd4 {
[%emt 0:15:27]} 21. Bxd4 {[%emt 0:02:50]} Qe7 {[%emt 0:01:01]} 22. Bd3 {
[%emt 0:00:45]} Qh4 {[%emt 0:03:34]} 23. Bxg6 {[%emt 0:02:13]} hxg6 {
[%emt 0:00:40]} 24. Bxb6 {[%emt 0:01:24]} cxb6 {[%emt 0:00:00]} 25. Re1 {
[%emt 0:00:23]} Qf6 {[%emt 0:01:59]} 26. Re2 {[%emt 0:02:18]} Re7 {
[%emt 0:05:47]} 27. Rxe7 {[%emt 0:00:22]} Qxe7 {[%emt 0:00:05]} 28. Re1 {
[%emt 0:00:08]} Qd7 {[%emt 0:00:08]} 29. Qe3 {[%emt 0:01:06]} b5 {
[%emt 0:00:00]} 30. Qe7 {[%emt 0:05:08]} bxc4 {[%emt 0:00:25]} 31. bxc4 {
[%emt 0:01:08]} b5 {[%emt 0:09:00]} 32. Qxd7 {[%emt 0:02:19]} Rxd7 {
[%emt 0:00:07]} 33. cxb5 {[%emt 0:00:15]} axb5 {[%emt 0:08:09]} 34. Re8+ {
[%emt 0:00:48]} Kh7 {[%emt 0:00:00]} 35. Rb8 {[%emt 0:00:11]} Ra7 {
[%emt 0:00:15]} 36. Rxb5 {[%emt 0:00:31]} Rxa2 {[%emt 0:00:06]} 37. Rb6 {
[%emt 0:00:10]} Ra1+ {[%emt 0:00:13]} 38. Kh2 {[%emt 0:00:18]} Rd1 {
[%emt 0:00:34]} 39. Rxd6 {[%emt 0:00:15]} f5 {[%emt 0:00:00]} 40. g3 {
[%emt 0:01:01]} g5 {[%emt 0:01:08]} 41. Kg2 {[%emt 0:00:25]} g6 {[%emt 0:00:48]
} 42. h4 {[%emt 0:01:38]} gxh4 {[%emt 0:02:30]} 43. gxh4 {[%emt 0:00:22]} Rd4 {
[%emt 0:00:08]} 44. Kg3 {[%emt 0:00:53]} Rg4+ {[%emt 0:00:16]} 45. Kh3 {
[%emt 0:00:18]} Rf4 {[%emt 0:00:14]} 46. Rd7+ {[%emt 0:02:09]} Kg8 {
[%emt 0:04:05]} 47. Rc7 {[%emt 0:01:57]} Kf8 {[%emt 0:01:28]} 48. Kg3 {
[%emt 0:00:00]} Rg4+ {[%emt 0:00:00]} 49. Kh3 {[%emt 0:04:19]} Rf4 {
[%emt 0:00:17]} 50. Rc2 {[%emt 0:08:22]} Rd4 {[%emt 0:00:39]} 51. Rc6 {
[%emt 0:02:52]} Kf7 {[%emt 0:02:13]} 52. d6 {[%emt 0:01:03]} Rd3+ {
[%emt 0:01:19]} 53. Kg2 {[%emt 0:01:17]} Rd4 {[%emt 0:00:30]} 54. Rc7+ {
[%emt 0:02:23]} Ke8 {[%emt 0:01:34]} 55. d7+ {[%emt 0:01:00]} Rxd7 {
[%emt 0:00:13]} 56. Rxd7 {[%emt 0:00:44]} Kxd7 {[%emt 0:00:00]} 57. Kg3 {
[%emt 0:00:11]} Ke7 {[%emt 0:01:03]} 58. Kf4 {[%emt 0:00:11]} Kf6 {
[%emt 0:01:34]} 59. f3 {[%emt 0:05:22]} Kf7 {[%emt 0:01:57]} 60. Ke5 {
[%emt 0:00:35]} Ke7 {[%emt 0:02:23]} 61. h5 {[%emt 0:04:26]} gxh5 {
[%emt 0:00:00]} 62. Kxf5 {[%emt 0:00:14]} Kf7 {[%emt 0:01:18]} 63. Kg5 {
[%emt 0:00:18]} Ke6 {[%emt 0:00:45]} 64. f4 {[%emt 0:01:28]} h4 {[%emt 0:00:21]
} 65. Kxh4 {[%emt 0:00:12]} Kf5 {[%emt 0:00:09]} 66. Kg3 {[%emt 0:00:11]} Kf6 {
[%emt 0:00:00]} 67. Kf3 {[%emt 0:04:31]} Kf5 {[%emt 0:00:17]} 68. Ke3 {
[%emt 0:00:26]} Kf6 {[%emt 0:00:14]} 69. Ke4 {[%emt 0:00:34]} Ke6 {
[%emt 0:00:02]} 70. f5+ {[%emt 0:02:34]} Kf6 {[%emt 0:00:09]} 71. Kf4 {
[%emt 0:00:04]} Kf7 {[%emt 0:00:08]} 72. Ke5 {[%emt 0:00:32]} Ke7 {
[%emt 0:00:02]} 1/2-1/2

[Event "Halifax Summer op"]
[Site "Halifax CAN"]
[Date "2019.06.30"]
[Round "5.4"]
[White "Bardsley, David"]
[Black "Turner, Peter"]
[Result "0-1"]
[ECO "E81"]
[WhiteElo "1566"]
[BlackElo "1978"]
[PlyCount "70"]
[EventDate "2019.05.28"]
[EventType "swiss"]
[EventRounds "5"]
[EventCountry "CAN"]
[TimeControl "2+30"]

1. d4 {[%emt 0:00:10]} Nf6 {[%emt 0:00:24]} 2. c4 {[%emt 0:00:17]} g6 {
[%emt 0:00:00]} 3. Nc3 {[%emt 0:00:13]} Bg7 {[%emt 0:00:20]} 4. e4 {
[%emt 0:00:30]} d6 {[%emt 0:00:40]} 5. f3 {[%emt 0:02:46]} Nbd7 {[%emt 0:04:30]
} 6. Be3 {[%emt 0:00:00]} O-O {[%emt 0:02:49]} 7. Qd2 {[%emt 0:01:29]} c5 {
[%emt 0:00:25]} 8. d5 {[%emt 0:00:58]} a6 {[%emt 0:02:27]} 9. Nh3 {
[%emt 0:02:39]} Re8 {[%emt 0:04:00]} 10. Nf2 {[%emt 0:01:57]} b5 {
[%emt 0:00:37]} 11. cxb5 {[%emt 0:02:54]} axb5 {[%emt 0:02:19]} 12. Bxb5 {
[%emt 0:00:44]} Ba6 {[%emt 0:00:41]} 13. Bxa6 {[%emt 0:02:10]} Rxa6 {
[%emt 0:00:07]} 14. O-O {[%emt 0:07:00]} Nb6 {[%emt 0:00:00]} 15. b3 {
[%emt 0:00:00]} Nfd7 {[%emt 0:02:18]} 16. Qe2 {[%emt 0:11:01]} Qa8 {
[%emt 0:05:09]} 17. Bd2 {[%emt 0:13:59]} Rc8 {[%emt 0:01:08]} 18. a4 {
[%emt 0:00:00]} c4 {[%emt 0:09:34]} 19. bxc4 {[%emt 0:09:46]} Nxc4 {
[%emt 0:11:31]} 20. Rac1 {[%emt 0:06:09]} Nxd2 {[%emt 0:01:29]} 21. Qxd2 {
[%emt 0:00:15]} Nc5 {[%emt 0:02:04]} 22. Rb1 {[%emt 0:07:00]} Nxa4 {
[%emt 0:05:42]} 23. Nxa4 {[%emt 0:00:25]} Rxa4 {[%emt 0:00:10]} 24. Rbc1 {
[%emt 0:10:45]} h6 {[%emt 0:11:12]} 25. Rxc8+ {[%emt 0:02:45]} Qxc8 {
[%emt 0:00:09]} 26. g4 {[%emt 0:04:13]} Rc4 {[%emt 0:03:10]} 27. Qd1 {
[%emt 0:01:46]} Qc5 {[%emt 0:00:59]} 28. Kg2 {[%emt 0:00:00]} Rc2 {
[%emt 0:03:18]} 29. Kg1 {[%emt 0:02:51]} Bd4 {[%emt 0:00:52]} 30. Qe1 {
[%emt 0:00:21]} Bxf2+ {[%emt 0:02:47]} 31. Rxf2 {[%emt 0:01:13]} Rc1 {
[%emt 0:00:08]} 32. Qxc1 {[%emt 0:00:04]} Qxc1+ {[%emt 0:00:08]} 33. Kg2 {
[%emt 0:00:05]} e6 {[%emt 0:01:06]} 34. dxe6 {[%emt 0:00:19]} fxe6 {
[%emt 0:00:00]} 35. Rf1 {[%emt 0:00:22]} Qc4 {[%emt 0:01:09]} 0-1

[Event "Nova Scotia Closed "]
[Site "Halifax CAN"]
[Date "2019.07.05"]
[Round "1.1"]
[White "Langen, Roger"]
[Black "Gonzalez-Cueto, Jose"]
[Result "1-0"]
[ECO "C24"]
[WhiteElo "2125"]
[BlackElo "2085"]
[PlyCount "57"]
[EventDate "2019.07.05"]
[EventType "tourn"]
[EventRounds "5"]
[EventCountry "CAN"]
[TimeControl "30/90+45:0"]

1. e4 {[%emt 0:00:02]} e5 {[%emt 0:00:17]} 2. Bc4 {[%emt 0:00:17]} Nf6 {
[%emt 0:00:33]} 3. d3 {[%emt 0:00:09]} d5 {[%emt 0:00:33]} 4. exd5 {
[%emt 0:00:18]} Nxd5 {[%emt 0:01:00]} 5. Nf3 {[%emt 0:00:18]} Nc6 {
[%emt 0:01:21]} 6. O-O {[%emt 0:00:13]} Bc5 {[%emt 0:01:11]} 7. Re1 {
[%emt 0:02:21]} O-O {[%emt 0:01:00]} 8. Nbd2 {[%emt 0:10:32]} Bg4 {
[%emt 0:04:11]} 9. h3 {[%emt 0:03:09]} Bh5 {[%emt 0:20:46]} 10. c3 {
[%emt 0:00:00]} a6 {[%emt 0:08:43]} 11. Ne4 {[%emt 0:00:00]} Ba7 {
[%emt 0:02:15]} 12. Bg5 {[%emt 0:10:27]} f6 {[%emt 0:14:52]} 13. Bh4 {
[%emt 0:01:40]} Kh8 {[%emt 0:12:31]} 14. g4 {[%emt 0:05:13]} Bg6 {
[%emt 0:00:00]} 15. Bg3 {[%emt 0:17:33]} Qd7 {[%emt 0:00:00]} 16. Nh4 {
[%emt 0:01:57]} Bf7 {[%emt 0:09:50]} 17. Kh2 {[%emt 0:05:36]} Rad8 {
[%emt 0:04:05]} 18. Qe2 {[%emt 0:01:52]} Na5 {[%emt 0:02:56]} 19. Rad1 {
[%emt 0:01:27]} Qc6 {[%emt 0:05:00]} 20. Bxd5 {[%emt 0:04:55]} Qxd5 {
[%emt 0:00:40]} 21. Nf5 {[%emt 0:02:27]} Rfe8 {[%emt 0:03:50]} 22. Bh4 {
[%emt 0:01:59]} Qe6 {[%emt 0:01:45]} 23. Nxg7 {[%emt 0:02:41]} Kxg7 {
[%emt 0:02:44]} 24. Bxf6+ {[%emt 0:00:17]} Kg8 {[%emt 0:00:00]} 25. Qd2 {
[%emt 0:01:13]} Bg6 {[%emt 0:00:55]} 26. Qg5 {[%emt 0:00:55]} Rd7 {
[%emt 0:01:30]} 27. h4 {[%emt 0:01:09]} Rf7 {[%emt 0:01:16]} 28. h5 {
[%emt 0:00:45]} Rxf6 {[%emt 0:05:07]} 29. Nxf6+ {[%emt 0:00:58]} 1-0

[Event "Nova Scotia Closed "]
[Site "Halifax CAN"]
[Date "2019.07.05"]
[Round "1.2"]
[White "Mayo, Alvah"]
[Black "Younis, Tallal"]
[Result "1-0"]
[ECO "B07"]
[WhiteElo "2163"]
[BlackElo "2154"]
[PlyCount "61"]
[EventDate "2019.07.05"]
[EventType "tourn"]
[EventRounds "5"]
[EventCountry "CAN"]
[TimeControl "30/90+45:0"]

1. e4 {[%emt 0:02:05]} d6 {[%emt 0:01:13]} 2. d4 {[%emt 0:00:48]} Nf6 {
[%emt 0:00:00]} 3. Nc3 {[%emt 0:03:13]} g6 {[%emt 0:00:16]} 4. Be3 {
[%emt 0:01:46]} a6 {[%emt 0:00:26]} 5. f3 {[%emt 0:01:03]} b5 {[%emt 0:02:36]}
6. Qd2 {[%emt 0:00:00]} Nbd7 {[%emt 0:00:15]} 7. Nge2 {[%emt 0:01:35]} Nb6 {
[%emt 0:00:52]} 8. Nc1 {[%emt 0:02:18]} Nc4 {[%emt 0:13:03]} 9. Bxc4 {
[%emt 0:00:04]} bxc4 {[%emt 0:00:00]} 10. Qe2 {[%emt 0:17:49]} d5 {
[%emt 0:00:00]} 11. O-O {[%emt 0:05:11]} c6 {[%emt 0:04:39]} 12. e5 {
[%emt 0:06:58]} Nd7 {[%emt 0:00:25]} 13. b3 {[%emt 0:09:59]} Nb6 {
[%emt 0:00:35]} 14. Qd2 {[%emt 0:12:52]} h5 {[%emt 0:00:13]} 15. N1e2 {
[%emt 0:00:24]} h4 {[%emt 0:00:11]} 16. f4 {[%emt 0:01:39]} Bf5 {[%emt 0:00:00]
} 17. Nd1 {[%emt 0:00:03]} a5 {[%emt 0:04:03]} 18. Nf2 {[%emt 0:01:59]} Qc8 {
[%emt 0:01:38]} 19. Kh1 {[%emt 0:01:28]} h3 {[%emt 0:03:57]} 20. Rg1 {
[%emt 0:08:16]} hxg2+ {[%emt 0:00:41]} 21. Rxg2 {[%emt 0:00:03]} e6 {
[%emt 0:00:00]} 22. Ng3 {[%emt 0:00:00]} Bh3 {[%emt 0:00:00]} 23. Nxh3 {
[%emt 0:00:00]} Rxh3 {[%emt 0:00:00]} 24. Ne2 {[%emt 0:01:17]} Be7 {
[%emt 0:00:50]} 25. Rag1 {[%emt 0:01:08]} Kd7 {[%emt 0:00:35]} 26. f5 {
[%emt 0:01:55]} gxf5 {[%emt 0:01:00]} 27. Rg7 {[%emt 0:00:27]} Rxh2+ {
[%emt 0:02:22]} 28. Kxh2 {[%emt 0:00:26]} Qh8+ {[%emt 0:00:02]} 29. Bh6 {
[%emt 0:00:40]} Bf8 {[%emt 0:00:32]} 30. Rxf7+ {[%emt 0:01:24]} Ke8 {
[%emt 0:00:01]} 31. Rxf8+ {[%emt 0:00:22]} 1-0

[Event "Nova Scotia Closed "]
[Site "Halifax CAN"]
[Date "2019.07.05"]
[Round "1.3"]
[White "Charlton, Glenn"]
[Black "Felix, Chris"]
[Result "1-0"]
[ECO "A47"]
[WhiteElo "2052"]
[BlackElo "2031"]
[PlyCount "49"]
[EventDate "2019.07.05"]
[EventType "tourn"]
[EventRounds "5"]
[EventCountry "CAN"]
[TimeControl "30/90+45:0"]

1. d4 {[%emt 0:00:02]} Nf6 {[%emt 0:00:20]} 2. Bf4 {[%emt 0:00:11]} e6 {
[%emt 0:02:37]} 3. e3 {[%emt 0:00:12]} c5 {[%emt 0:00:32]} 4. Nd2 {
[%emt 0:01:20]} Nc6 {[%emt 0:01:08]} 5. Ngf3 {[%emt 0:01:19]} b6 {
[%emt 0:01:17]} 6. c3 {[%emt 0:02:19]} Bb7 {[%emt 0:01:10]} 7. Bd3 {
[%emt 0:00:56]} Be7 {[%emt 0:00:35]} 8. h3 {[%emt 0:00:10]} O-O {[%emt 0:03:05]
} 9. O-O {[%emt 0:01:09]} Rc8 {[%emt 0:00:00]} 10. a4 {[%emt 0:04:03]} d6 {
[%emt 0:05:24]} 11. Bh2 {[%emt 0:04:36]} Re8 {[%emt 0:15:12]} 12. Qe2 {
[%emt 0:00:00]} Bf8 {[%emt 0:08:36]} 13. Rad1 {[%emt 0:18:48]} cxd4 {
[%emt 0:13:17]} 14. exd4 {[%emt 0:00:00]} e5 {[%emt 0:00:00]} 15. dxe5 {
[%emt 0:01:35]} dxe5 {[%emt 0:01:01]} 16. Bf5 {[%emt 0:09:51]} Rc7 {
[%emt 0:07:11]} 17. Ne4 {[%emt 0:05:38]} Nd7 {[%emt 0:14:26]} 18. Nfg5 {
[%emt 0:00:06]} g6 {[%emt 0:08:06]} 19. Bxd7 {[%emt 0:00:33]} Nd4 {
[%emt 0:06:00]} 20. cxd4 {[%emt 0:03:50]} Rxd7 {[%emt 0:00:27]} 21. dxe5 {
[%emt 0:03:01]} Ba6 {[%emt 0:02:36]} 22. Qf3 {[%emt 0:07:39]} Bg7 {
[%emt 0:04:55]} 23. Rxd7 {[%emt 0:00:48]} Qxd7 {[%emt 0:00:13]} 24. Rd1 {
[%emt 0:00:20]} Qe7 {[%emt 0:00:00]} 25. Nd6 {[%emt 0:07:26]} 1-0

[Event "Nova Scotia Closed "]
[Site "Halifax CAN"]
[Date "2019.07.06"]
[Round "2.1"]
[White "Gonzalez-Cueto, Jose"]
[Black "Mayo, Alvah"]
[Result "0-1"]
[ECO "B21"]
[WhiteElo "2085"]
[BlackElo "2163"]
[PlyCount "34"]
[EventDate "2019.07.05"]
[EventType "tourn"]
[EventRounds "5"]
[EventCountry "CAN"]
[TimeControl "30/90+45:0"]

1. d4 {[%emt 0:00:04]} c5 {[%emt 0:01:12]} 2. e4 {[%emt 0:01:19]} cxd4 {
[%emt 0:01:49]} 3. Qxd4 {[%emt 0:00:39]} Nc6 {[%emt 0:00:07]} 4. Qa4 {
[%emt 0:01:44]} g6 {[%emt 0:00:32]} 5. Nf3 {[%emt 0:02:04]} Bg7 {[%emt 0:07:59]
} 6. Be2 {[%emt 0:12:49]} d6 {[%emt 0:00:31]} 7. O-O {[%emt 0:05:24]} Bd7 {
[%emt 0:00:17]} 8. Qb3 {[%emt 0:00:57]} Nf6 {[%emt 0:03:23]} 9. Nc3 {
[%emt 0:04:53]} Rb8 {[%emt 0:00:00]} 10. Re1 {[%emt 0:00:00]} O-O {
[%emt 0:00:00]} 11. a4 {[%emt 0:00:00]} Be6 {[%emt 0:11:02]} 12. Qb5 {
[%emt 0:01:34]} a6 {[%emt 0:02:10]} 13. Qg5 {[%emt 0:01:25]} h6 {[%emt 0:02:24]
} 14. Qg3 {[%emt 0:11:50]} Qa5 {[%emt 0:02:00]} 15. Nh4 {[%emt 0:15:29]} Nxe4 {
[%emt 0:27:48]} 16. Nxe4 {[%emt 0:00:00]} Qxe1+ {[%emt 0:00:00]} 17. Bf1 {
[%emt 0:00:00]} Qxe4 {[%emt 0:00:00]} 0-1

[Event "Nova Scotia Closed "]
[Site "Halifax CAN"]
[Date "2019.07.06"]
[Round "2.2"]
[White "Charlton, Glenn"]
[Black "Langen, Roger"]
[Result "1/2-1/2"]
[ECO "D02"]
[WhiteElo "2052"]
[BlackElo "2125"]
[PlyCount "79"]
[EventDate "2019.07.05"]
[EventType "tourn"]
[EventRounds "5"]
[EventCountry "CAN"]
[TimeControl "30/90+45:0"]

1. d4 {[%emt 0:00:03]} Nf6 {[%emt 0:00:11]} 2. Bf4 {[%emt 0:00:14]} Nh5 {
[%emt 0:00:24]} 3. Bd2 {[%emt 0:01:47]} Nf6 {[%emt 0:00:40]} 4. Nf3 {
[%emt 0:02:11]} d5 {[%emt 0:01:17]} 5. Bf4 {[%emt 0:01:31]} c5 {[%emt 0:00:14]}
6. e3 {[%emt 0:00:00]} Nc6 {[%emt 0:00:25]} 7. Nbd2 {[%emt 0:00:15]} e6 {
[%emt 0:03:11]} 8. c3 {[%emt 0:02:21]} Bd6 {[%emt 0:03:57]} 9. Bg3 {
[%emt 0:01:05]} O-O {[%emt 0:01:00]} 10. Bd3 {[%emt 0:00:21]} b6 {
[%emt 0:01:22]} 11. Qe2 {[%emt 0:04:07]} Bb7 {[%emt 0:04:39]} 12. Rd1 {
[%emt 0:00:21]} Rc8 {[%emt 0:10:46]} 13. e4 {[%emt 0:00:00]} Be7 {
[%emt 0:00:00]} 14. e5 {[%emt 0:00:00]} Nh5 {[%emt 0:00:00]} 15. a3 {
[%emt 0:00:00]} g6 {[%emt 0:00:00]} 16. Nf1 {[%emt 0:04:18]} c4 {[%emt 0:00:00]
} 17. Bc2 {[%emt 0:01:51]} b5 {[%emt 0:00:22]} 18. Ne3 {[%emt 0:02:15]} a5 {
[%emt 0:02:07]} 19. Ng4 {[%emt 0:02:07]} b4 {[%emt 0:02:37]} 20. Qe3 {
[%emt 0:13:43]} Kh8 {[%emt 0:17:11]} 21. a4 {[%emt 0:23:19]} b3 {[%emt 0:00:00]
} 22. Bb1 {[%emt 0:00:00]} Nb8 {[%emt 0:00:00]} 23. Bf4 {[%emt 0:01:43]} Nd7 {
[%emt 0:05:07]} 24. Bh6 {[%emt 0:12:55]} Rg8 {[%emt 0:07:54]} 25. Bg5 {
[%emt 0:00:00]} f5 {[%emt 0:38:11]} 26. exf6 {[%emt 0:02:29]} Nhxf6 {
[%emt 0:02:41]} 27. Nh6 {[%emt 0:02:14]} Rf8 {[%emt 0:02:43]} 28. Qxe6 {
[%emt 0:01:45]} Qe8 {[%emt 0:00:50]} 29. O-O {[%emt 0:02:57]} Rc6 {
[%emt 0:03:46]} 30. Qe3 {[%emt 0:00:00]} Bd8 {[%emt 0:02:20]} 31. Rfe1 {
[%emt 0:06:07]} Qxe3 {[%emt 0:02:14]} 32. Rxe3 {[%emt 0:00:25]} Kg7 {
[%emt 0:04:57]} 33. Rde1 {[%emt 0:10:05]} Bc8 {[%emt 0:06:17]} 34. h3 {
[%emt 0:14:52]} Nb6 {[%emt 0:05:50]} 35. Re7+ {[%emt 0:00:00]} Bxe7 {
[%emt 0:00:39]} 36. Rxe7+ {[%emt 0:00:14]} Kh8 {[%emt 0:00:06]} 37. Nf7+ {
[%emt 0:02:18]} Kg8 {[%emt 0:08:06]} 38. Nh6+ {[%emt 0:00:23]} Kh8 {
[%emt 0:00:09]} 39. Nf7+ {[%emt 0:00:09]} Kg8 {[%emt 0:01:25]} 40. Nh6+ {
[%emt 0:00:16]} 1/2-1/2

[Event "Nova Scotia Closed "]
[Site "Halifax CAN"]
[Date "2019.07.06"]
[Round "2.3"]
[White "Felix, Chris"]
[Black "Younis, Tallal"]
[Result "1/2-1/2"]
[ECO "B09"]
[WhiteElo "2031"]
[BlackElo "2154"]
[PlyCount "66"]
[EventDate "2019.07.05"]
[EventType "tourn"]
[EventRounds "5"]
[EventCountry "CAN"]
[TimeControl "30/90+45:0"]

1. e4 {[%emt 0:00:03]} d6 {[%emt 0:01:01]} 2. d4 {[%emt 0:00:08]} Nf6 {
[%emt 0:00:00]} 3. Nc3 {[%emt 0:00:09]} g6 {[%emt 0:00:07]} 4. f4 {
[%emt 0:00:12]} Bg7 {[%emt 0:00:11]} 5. Nf3 {[%emt 0:00:53]} c5 {[%emt 0:00:00]
} 6. Bb5+ {[%emt 0:00:00]} Bd7 {[%emt 0:00:09]} 7. e5 {[%emt 0:00:41]} Ng4 {
[%emt 0:02:02]} 8. e6 {[%emt 0:00:47]} fxe6 {[%emt 0:02:14]} 9. Ng5 {
[%emt 0:01:07]} Bxb5 {[%emt 0:00:00]} 10. Nxe6 {[%emt 0:01:02]} Bxd4 {
[%emt 0:01:50]} 11. Nxb5 {[%emt 0:01:00]} Qa5+ {[%emt 0:01:13]} 12. Qd2 {
[%emt 0:00:10]} Bf2+ {[%emt 0:00:28]} 13. Kd1 {[%emt 0:00:10]} Ne3+ {
[%emt 0:00:39]} 14. Ke2 {[%emt 0:00:05]} Qxb5+ {[%emt 0:00:25]} 15. Kxf2 {
[%emt 0:00:08]} Ng4+ {[%emt 0:00:24]} 16. Kg3 {[%emt 0:00:09]} Kd7 {
[%emt 0:06:15]} 17. Kxg4 {[%emt 0:13:04]} Kxe6 {[%emt 0:00:30]} 18. Re1+ {
[%emt 0:04:51]} Kd7 {[%emt 0:00:49]} 19. Qd5 {[%emt 0:13:46]} Nc6 {
[%emt 0:00:49]} 20. a4 {[%emt 0:02:36]} Qa5 {[%emt 0:03:53]} 21. Bd2 {
[%emt 0:00:00]} Qd8 {[%emt 0:02:16]} 22. b4 {[%emt 0:15:43]} cxb4 {
[%emt 0:11:51]} 23. Bxb4 {[%emt 0:01:09]} Qf8 {[%emt 0:01:26]} 24. Bc3 {
[%emt 0:04:51]} Rg8 {[%emt 0:07:47]} 25. Kf3 {[%emt 0:23:20]} Rc8 {
[%emt 0:18:00]} 26. Rab1 {[%emt 0:02:00]} Rb8 {[%emt 0:06:43]} 27. g3 {
[%emt 0:03:47]} Qf5 {[%emt 0:00:43]} 28. Rxb7+ {[%emt 0:34:44]} Rxb7 {
[%emt 0:00:19]} 29. Qxg8 {[%emt 0:00:20]} Qxc2 {[%emt 0:00:50]} 30. Qe6+ {
[%emt 0:00:45]} Kd8 {[%emt 0:03:24]} 31. Qg8+ {[%emt 0:02:23]} Kd7 {
[%emt 0:04:42]} 32. Qe6+ {[%emt 0:05:44]} Kd8 {[%emt 0:18:11]} 33. Qc4 {
[%emt 0:00:14]} Kd7 {[%emt 0:03:11]} 1/2-1/2

[Event "Nova Scotia Closed "]
[Site "Halifax CAN"]
[Date "2019.07.06"]
[Round "3.1"]
[White "Younis, Tallal"]
[Black "Gonzalez-Cueto, Jose"]
[Result "1-0"]
[ECO "C24"]
[WhiteElo "2154"]
[BlackElo "2085"]
[PlyCount "81"]
[EventDate "2019.07.05"]
[EventType "tourn"]
[EventRounds "5"]
[EventCountry "CAN"]
[TimeControl "30/90+45:0"]

1. e4 {[%emt 0:00:08]} e5 {[%emt 0:00:11]} 2. Bc4 {[%emt 0:00:30]} Nf6 {
[%emt 0:00:26]} 3. d3 {[%emt 0:00:08]} d5 {[%emt 0:00:09]} 4. exd5 {
[%emt 0:00:09]} Nxd5 {[%emt 0:00:41]} 5. Nf3 {[%emt 0:00:12]} Nc6 {
[%emt 0:00:28]} 6. h3 {[%emt 0:01:46]} Bc5 {[%emt 0:01:38]} 7. O-O {
[%emt 0:00:12]} O-O {[%emt 0:01:00]} 8. Re1 {[%emt 0:01:51]} Kh8 {
[%emt 0:11:07]} 9. Nxe5 {[%emt 0:50:04]} Be6 {[%emt 1:31:31]} 10. Nxc6 {
[%emt 0:00:00]} bxc6 {[%emt 0:00:00]} 11. Bb3 {[%emt 0:00:00]} Qf6 {
[%emt 0:00:00]} 12. Rf1 {[%emt 0:00:00]} Qg6 {[%emt 0:00:00]} 13. Qf3 {
[%emt 0:00:00]} f5 {[%emt 0:00:00]} 14. Nc3 {[%emt 0:00:00]} Rad8 {
[%emt 0:00:00]} 15. Nxd5 {[%emt 0:00:00]} cxd5 {[%emt 0:00:00]} 16. Bf4 {
[%emt 0:00:00]} c6 {[%emt 0:00:00]} 17. Rfe1 {[%emt 0:00:00]} Rde8 {
[%emt 0:00:00]} 18. Re2 {[%emt 0:00:00]} Bd7 {[%emt 0:00:00]} 19. Rae1 {
[%emt 0:00:00]} Rxe2 {[%emt 0:00:00]} 20. Rxe2 {[%emt 0:00:00]} h6 {
[%emt 0:00:00]} 21. c3 {[%emt 0:00:00]} Re8 {[%emt 0:00:00]} 22. d4 {
[%emt 0:00:00]} Be7 {[%emt 0:00:00]} 23. Bc2 {[%emt 0:00:00]} Bf6 {
[%emt 0:00:00]} 24. Bd3 {[%emt 0:00:00]} Qf7 {[%emt 0:00:00]} 25. Bd6 {
[%emt 0:00:00]} g6 {[%emt 0:00:19]} 26. Bc5 {[%emt 0:00:00]} a5 {[%emt 0:01:29]
} 27. Bb6 {[%emt 0:00:00]} Ra8 {[%emt 0:02:28]} 28. Bc7 {[%emt 0:04:26]} Kh7 {
[%emt 0:04:37]} 29. g3 {[%emt 0:01:46]} Kg7 {[%emt 0:00:00]} 30. h4 {
[%emt 0:00:25]} h5 {[%emt 0:01:39]} 31. Qf4 {[%emt 0:00:27]} a4 {[%emt 0:00:35]
} 32. a3 {[%emt 0:00:10]} Re8 {[%emt 0:00:27]} 33. Be5 {[%emt 0:00:00]} Bxe5 {
[%emt 0:02:40]} 34. Rxe5 {[%emt 0:00:18]} Re6 {[%emt 0:03:11]} 35. Bc2 {
[%emt 0:11:45]} c5 {[%emt 0:31:32]} 36. dxc5 {[%emt 0:00:00]} Qe8 {
[%emt 0:00:00]} 37. Rxe6 {[%emt 0:00:00]} Qxe6 {[%emt 0:00:00]} 38. Bxa4 {
[%emt 0:00:00]} Bxa4 {[%emt 0:00:00]} 39. Qxa4 {[%emt 0:00:00]} Kh6 {
[%emt 0:00:00]} 40. c6 {[%emt 0:00:30]} Qe7 {[%emt 0:00:35]} 41. Qf4+ {
[%emt 0:02:20]} 1-0